lending/lending_fUSD_20260209
["ID","MTS","AMOUNT","RATE_DAILY","PERIOD"]
[404832628,1770605453525,-597.62023702,0.0004444,120]
[404832629,1770605453535,-166.71820347,0.0004444,120]
[404832630,1770605453545,-703.26,0.0004444,120]
[404832631,1770605453554,-703.26,0.0004444,120]
[404832632,1770605453564,-703.26,0.0004444,120]
[404832633,1770605453574,-703.26,0.0004444,120]
[404832634,1770605453584,-703.26,0.0004444,120]
[404832635,1770605453594,-703.26,0.0004444,120]
[404832636,1770605453603,-703.26,0.0004444,120]
[404832637,1770605453613,-703.26,0.0004444,120]
[404832638,1770605453623,-703.26,0.0004444,120]
[404832639,1770605453633,-703.26,0.0004444,120]
[404832640,1770605453643,-703.26,0.0004444,120]
[404832641,1770605453652,-703.26,0.0004444,120]
[404832642,1770605453662,-703.26,0.0004444,120]
[404832643,1770605453672,-703.26,0.0004444,120]
[404832644,1770605453681,-703.26,0.0004444,120]
[404832645,1770605453691,-703.26,0.0004444,120]
[404832646,1770605453701,-703.26,0.0004444,120]
[404832647,1770605453711,-500.0,0.0004444,120]
[404832648,1770605453722,-703.26,0.0004444,120]
[404832649,1770605453732,-703.31857873,0.0004444,120]
[404832650,1770605453742,-500.0,0.0004444,120]
[404832651,1770605453752,-500.0,0.0004444,120]
[404832652,1770605453762,-500.0,0.0004444,120]
[404832653,1770605453773,-500.0,0.0004444,120]
[404832654,1770605453785,-625.77069203,0.0004444,120]
[404832655,1770605453797,-500.0,0.0004444,120]
[404832656,1770605453809,-500.0,0.0004444,120]
[404832657,1770605453819,-500.0,0.0004444,120]
[404832658,1770605453829,-500.0,0.0004444,120]
[404832659,1770605453840,-500.0,0.0004444,120]
[404832660,1770605453851,-500.0,0.0004444,120]
[404832661,1770605453861,-495.0,0.0004444,120]
[404832662,1770605453873,-500.0,0.0004444,120]
[404832663,1770605453882,-500.0,0.0004444,120]
[404832664,1770605453892,-500.0,0.0004444,120]
[404832665,1770605453902,-500.0,0.0004444,120]
[404832666,1770605453912,-500.0,0.0004444,120]
[404832667,1770605453922,-500.0,0.0004444,120]
[404832668,1770605453932,-510.48,0.0004444,120]
[404832669,1770605453942,-500.0,0.0004444,120]
[404832670,1770605454128,-500.0,0.0004444,120]
[404832671,1770605454138,-500.0,0.0004444,120]
[404832672,1770605454148,-547.76150713,0.0004444,120]
[404832673,1770605454158,-500.0,0.0004444,120]
[404832674,1770605454167,-262.8962874,0.0004444,120]
[404832675,1770605454177,-500.0,0.0004444,120]
[404832676,1770605454187,-500.0,0.0004444,120]
[404832677,1770605454198,-500.0,0.0004444,120]
[404832678,1770605454207,-519.37932773,0.0004444,120]
[404832679,1770605454216,-500.0,0.0004444,120]
[404832680,1770605454226,-500.0,0.0004444,120]
[404832681,1770605454236,-500.0,0.0004444,120]
[404832682,1770605454246,-500.0,0.0004444,120]
[404832683,1770605454256,-547.14499085,0.0004444,120]
[404832684,1770605454266,-500.0,0.0004444,120]
[404832685,1770605454277,-500.0,0.0004444,120]
[404832686,1770605454286,-500.0,0.0004444,120]
[404832687,1770605454296,-500.0,0.0004444,120]
[404832688,1770605454306,-500.0,0.0004444,120]
[404832689,1770605454315,-500.0,0.0004444,120]
[404832690,1770605454324,-500.0,0.0004444,120]
[404832691,1770605454334,-500.0,0.0004444,120]
[404832692,1770605454343,-625.15940479,0.0004444,120]
[404832693,1770605454354,-500.0,0.0004444,120]
[404832694,1770605454363,-500.0,0.0004444,120]
[404832695,1770605454373,-500.0,0.0004444,120]
[404832696,1770605454382,-500.0,0.0004444,120]
[404832697,1770605454392,-240.32747839,0.0004444,120]
[404832698,1770605454401,-500.0,0.0004444,120]
[404832699,1770605454411,-500.0,0.0004444,120]
[404832700,1770605454420,-38908.88771444,0.0004444,54]
[404832701,1770605454430,-150.0,0.0004444,30]
[404832702,1770605454439,-5994761.57109732,0.00044441,10]
[404832703,1770605454570,-490.0,0.00044441,10]
[404832704,1770605454593,-412.0,0.00044289,2]
[404832705,1770605454603,-1118.06652458,0.00044441,10]
[404832706,1770605454614,-862.91952571,0.00044441,10]
[404832707,1770605454626,-547.48486078,0.00044441,10]
[404832708,1770605454636,-707.375,0.00044441,10]
[404832709,1770605454648,-450.34283817,0.00044441,10]
[404832710,1770605454660,-689.72524371,0.00044441,10]
[404832711,1770605454671,-606.6000014,0.00044441,10]
[404832712,1770605454683,-12444.89735344,0.00044441,10]
[404832713,1770605454694,-669.878833,0.00044441,10]
[404832714,1770605454705,-354.53810429,0.00044441,10]
[404832715,1770605454717,-3113.1147409,0.00044441,10]
[404832716,1770605454729,-9502.95454108,0.00044441,10]
[404832717,1770605454740,-1810.82933398,0.00044441,10]
[404832718,1770605454751,-298.51436949,0.00044441,10]
[404832719,1770605454762,-438303.32557169,0.00044441,10]
[404832720,1770605454829,-672.20075,0.00044441,10]
[404832721,1770605454841,-9785.47891595,0.00044441,10]
[404832722,1770605454852,-756.36239246,0.00044441,10]
[404832723,1770605454875,-189139.41754761,0.00044441,10]
[404832724,1770605454886,-580.63171811,0.00044441,10]
[404832725,1770605454897,-475.776,0.00044441,10]
[404832726,1770605454908,-2880.04780582,0.00044441,10]
[404832727,1770605454919,-891.39,0.00044441,10]
[404832728,1770605454930,-5071.14967122,0.00044441,10]
[404832729,1770605454971,-500.0,0.00044356,120]
[404832730,1770605454980,-470.66460315,0.00044356,120]
[404832731,1770605454989,-2060.0881083,0.00044441,10]
[404832732,1770605455000,-21454.90245532,0.00044441,10]
[404832733,1770605455045,-1384.00984328,0.00044441,10]
[404832734,1770605455056,-9184.22157428,0.00044441,10]
[404832735,1770605455067,-3110.30451518,0.00044441,10]
[404832736,1770605455079,-432.60481996,0.00044441,10]
[404832737,1770605455090,-812.18755796,0.00044441,10]
[404832739,1770605554703,364.73,0.000356,30]
[404832755,1770606261628,4088.0,0.000356,120]
[404832763,1770606631353,-299.23478,0.0001844,2]
[404832764,1770606631405,-181.43907402,0.0001844,2]
[404832765,1770606631415,-509.0,0.00032616,2]
[404832766,1770606631425,-436.17505181,0.00033024,2]
[404832767,1770606631436,-68.27498745,0.00033024,2]
[404832768,1770606631446,-250.0,0.00033024,2]
[404832769,1770606631456,-165.33500876,0.00033775,2]
[404832770,1770606631467,-339.1150305,0.00033775,2]
[404832771,1770606631476,-504.45003926,0.00034525,2]
[404832772,1770606631486,-504.45003926,0.00035276,2]
[404832773,1770606631496,-119.86612182,0.00035878,2]
[404832774,1770606631509,-130.13387818,0.00035878,2]
[404832775,1770606631518,-195.0,0.00035878,120]
[404832776,1770606631528,-210.97076906,0.00035878,2]
[404832777,1770606631540,-39.02923094,0.00035878,2]
[404832778,1770606631550,-504.45003926,0.00036027,2]
[404832779,1770606631560,-255.83894739,0.00036415,30]
[404832780,1770606631572,-42.99105261,0.00036415,30]
[404832781,1770606631582,-504.45003926,0.00036778,2]
[404832782,1770606631591,-504.45003926,0.00037528,2]
[404832783,1770606631601,-156.71897436,0.00037592,2]
[404832784,1770606631612,-43.28102564,0.00037592,2]
[404832785,1770606631622,-504.45003926,0.00038279,2]
[404832786,1770606631632,-154.21,0.00038341,2]
[404832787,1770606631641,-1600.0,0.00038452,5]
[404832788,1770606631651,-772.9,0.00038453,120]
[404832790,1770606631660,-4340.83,0.0003849,2]
[404832792,1770606631669,-200.81777997,0.00038771,2]
[404832793,1770606631679,-4312.34434655,0.00038778,2]
[404832794,1770606631688,-227815.80502385,0.00038781,2]
[404832795,1770606631700,-1254.41808677,0.00038781,2]
[404832796,1770606631712,-1594.1820068,0.00038781,2]
[404832797,1770606631723,-720.05,0.00038781,2]
[404832802,1770606637446,-165.92381046,0.0003878,15]
[404832803,1770606637458,-500.0,0.0003878,15]
[404832804,1770606637468,-248.30940239,0.0003878,15]
[404832805,1770606637479,-500.0,0.0003878,15]
[404832806,1770606637489,-518.30078465,0.0003878,15]
[404832807,1770606637499,-70182.58391502,0.00038781,2]
[404832808,1770606637510,-2936.5044634,0.00038781,2]
[404832809,1770606637530,-3195496.45650416,0.00038781,2]
[404832810,1770606637540,-300.0,0.00038878,5]
[404832811,1770606637550,-11012.6382741,0.00038881,14]
[404832812,1770606637560,-154.65495432,0.00038881,2]
[404832813,1770606637569,-500.0,0.00038899,15]
[404832814,1770606637579,-500.0,0.00038899,15]
[404832815,1770606637588,-500.0,0.00038899,15]
[404832816,1770606637598,-500.0,0.00038899,15]
[404832817,1770606637608,-500.0,0.00038899,15]
[404832818,1770606637618,-500.0,0.00038899,15]
[404832819,1770606637628,-500.0,0.00038899,15]
[404832820,1770606637638,-500.0,0.00038899,15]
[404832821,1770606637647,-500.0,0.00038899,15]
[404832822,1770606637657,-500.0,0.00038899,15]
[404832823,1770606637667,-500.0,0.00038899,15]
[404832824,1770606637677,-500.0,0.00038899,15]
[404832825,1770606637687,-205.20815172,0.00038899,15]
[404832827,1770606637696,-500.0,0.00038899,15]
[404832829,1770606637705,-500.0,0.00038899,15]
[404832831,1770606637715,-500.0,0.00038899,15]
[404832833,1770606637725,-500.0,0.00038899,15]
[404832834,1770606637736,-500.0,0.00038899,15]
[404832837,1770606637746,-500.0,0.00038899,15]
[404832838,1770606637756,-500.0,0.00038899,15]
[404832839,1770606637766,-298.57738645,0.00038899,15]
[404832840,1770606637776,-500.0,0.00038899,15]
[404832841,1770606637786,-500.0,0.00038899,15]
[404832842,1770606637795,-500.0,0.00038899,15]
[404832843,1770606637806,-500.0,0.00038899,15]
[404832844,1770606637816,-500.0,0.00038899,15]
[404832845,1770606637826,-500.0,0.00038899,15]
[404832846,1770606637836,-500.0,0.00038899,15]
[404832847,1770606637846,-500.0,0.00038899,15]
[404832848,1770606637856,-500.0,0.00038899,15]
[404832849,1770606637866,-500.0,0.00038899,15]
[404832850,1770606637876,-500.0,0.00038899,15]
[404832851,1770606637886,-300.0,0.00038899,15]
[404832852,1770606637896,-500.0,0.00038899,15]
[404832853,1770606637905,-300.0,0.00038899,15]
[404832854,1770606637915,-500.0,0.00038899,15]
[404832855,1770606637925,-500.0,0.00038899,15]
[404832856,1770606637935,-500.0,0.00038899,15]
[404832857,1770606637945,-500.0,0.00038899,15]
[404832858,1770606637955,-244.81629874,0.00038899,15]
[404832859,1770606637964,-500.0,0.00038899,15]
[404832860,1770606637974,-500.0,0.00038899,15]
[404832861,1770606637984,-300.0,0.00038899,15]
[404832862,1770606637993,-500.0,0.00038899,15]
[404832863,1770606638003,-500.0,0.00038899,15]
[404832864,1770606638013,-500.0,0.00038899,15]
[404832865,1770606638022,-650.0,0.00038899,15]
[404832866,1770606638033,-500.0,0.00038899,15]
[404832867,1770606638043,-500.0,0.00038899,15]
[404832868,1770606638054,-500.0,0.00038899,15]
[404832869,1770606638064,-500.0,0.00038899,15]
[404832870,1770606638074,-500.0,0.00038899,15]
[404832871,1770606638084,-500.0,0.00038899,15]
[404832872,1770606638095,-500.0,0.00038899,15]
[404832873,1770606638104,-500.0,0.00038899,15]
[404832874,1770606638114,-500.0,0.00038899,15]
[404832875,1770606638124,-500.0,0.00038899,15]
[404832876,1770606638134,-500.0,0.00038899,15]
[404832877,1770606638144,-500.0,0.00038899,15]
[404832878,1770606638157,-500.0,0.00038899,15]
[404832879,1770606638167,-500.0,0.00038899,15]
[404832880,1770606638177,-200.0,0.00038981,2]
[404832881,1770606638186,-5000.0,0.00039,2]
[404832882,1770606638197,-5000.0,0.00039023,120]
[404832883,1770606638207,-504.45003926,0.0003903,2]
[404832884,1770606638216,-2000.0,0.000397,2]
[404832885,1770606638228,-504.45003926,0.00039781,2]
[404832886,1770606638237,-1361.541,0.00039799,2]
[404832887,1770606638247,-1601.781,0.000398,56]
[404832888,1770606638258,-177.659,0.000398,56]
[404832889,1770606638268,-4312.34434655,0.00039891,2]
[404832890,1770606638278,-317.5,0.000399,30]
[404832891,1770606638288,-3760.08,0.000399,2]
[404832892,1770606638298,-150.0,0.00039999,7]
[404832893,1770606638308,-150.0,0.00039999,7]
[404832894,1770606638318,-150.0,0.00039999,7]
[404832895,1770606638327,-150.0,0.00039999,7]
[404832896,1770606638336,-150.0,0.00039999,7]
[404832897,1770606638345,-150.0,0.00039999,7]
[404832898,1770606638354,-10893.3127493,0.0004,120]
[404832899,1770606638364,-500.0,0.0004,5]
[404832900,1770606638373,-534.65816906,0.0004,5]
[404832901,1770606638382,-500.30350429,0.0004,5]
[404832902,1770606638391,-500.0,0.0004,5]
[404832903,1770606638400,-504.45003926,0.00040531,2]
[404832904,1770606638410,-1000.69918339,0.00040548,5]
[404832905,1770606638419,-1000.0,0.00040548,5]
[404832906,1770606638429,-300.0,0.00040548,2]
[404832907,1770606638438,-150.0,0.00040888,7]
[404832908,1770606638447,-154.21,0.00040897,2]
[404832909,1770606638457,-4312.34434655,0.00041004,2]
[404832910,1770606638466,-500.0,0.00041096,10]
[404832911,1770606638476,-2240.0,0.00041237,5]
[404832912,1770606638485,-504.45003926,0.00041282,2]
[404832913,1770606638495,-18492.06,0.0004144,2]
[404832914,1770606638504,-154.6549543,0.00041612,120]
[404832915,1770606638513,-150.0,0.00041776,30]
[404832916,1770606638523,-504.45003926,0.00042033,2]
[404832917,1770606638533,-4312.34434655,0.00042117,2]
[404832918,1770606638542,-150.0,0.00042665,30]
[404832919,1770606638552,-800.0,0.0004274,7]
[404832920,1770606638562,-504.45003926,0.00042783,2]
[404832921,1770606638571,-150.0,0.00042836,2]
[404832922,1770606638581,-38108.0,0.00042982,30]
[404832923,1770606638590,-14212.0,0.00043,120]
[404832924,1770606638600,-250.0,0.00043097,2]
[404832925,1770606638611,-502.0,0.00043123,2]
[404832926,1770606638621,-4312.34434655,0.0004323,2]
[404832927,1770606638631,-772.9,0.0004326,120]
[404832928,1770606638641,-2000.0,0.000434,2]
[404832929,1770606638651,-38108.0,0.00043425,30]
[404832930,1770606638660,-154.21,0.00043453,2]
[404832931,1770606638670,-3760.08,0.000435,2]
[404832932,1770606638680,-504.45003926,0.00043534,2]
[404832933,1770606638689,-150.0,0.00043554,30]
[404832934,1770606638699,-317.5,0.000436,30]
[404832935,1770606638709,-1168.11,0.000437,120]
[404832936,1770606638718,-500.0,0.00043773,10]
[404832937,1770606638728,-1611.48287488,0.00043835,120]
[404832938,1770606638738,-38108.0,0.00043868,30]
[404832939,1770606638748,-20183.0,0.00044,120]
[404832940,1770606638758,-324.0,0.00044,60]
[404832941,1770606638768,-2084.0,0.00044223,5]
[404832942,1770606638778,-504.45003926,0.00044285,2]
[404832943,1770606638788,-3485.0,0.00044289,2]
[404832944,1770606638798,-3256.0,0.00044289,2]
[404832945,1770606638808,-412.0,0.00044289,2]
[404832946,1770606638818,-573.23347232,0.00044289,2]
[404832947,1770606638827,-3494.0,0.00044303,7]
[404832948,1770606638837,-15116.7777341,0.00044305,15]
[404832949,1770606638846,-38108.0,0.00044311,30]
[404832950,1770606638856,-1000.0,0.00044321,10]
[404832951,1770606638866,-154.6549543,0.00044343,120]
[404832952,1770606638876,-4312.34434655,0.00044343,2]
[404832953,1770606638885,-500.0,0.00044356,120]
[404832954,1770606638895,-500.0,0.00044356,30]
[404832955,1770606638905,-500.0,0.00044356,120]
[404832956,1770606638914,-531.7916748,0.00044356,120]
[404832957,1770606638927,-539.66610168,0.00044356,120]
[404832958,1770606638937,-500.0,0.00044356,120]
[404832959,1770606638947,-509.67814337,0.00044356,120]
[404832960,1770606638957,-500.0,0.00044356,120]
[404832961,1770606638967,-500.0,0.00044356,120]
[404832962,1770606638976,-500.0,0.00044356,120]
[404832963,1770606638986,-500.0,0.00044356,120]
[404832964,1770606638995,-500.0,0.00044356,120]
[404832965,1770606639006,-533.57693899,0.00044356,120]
[404832966,1770606639015,-500.0,0.00044356,120]
[404832967,1770606639025,-500.0,0.00044356,120]
[404832968,1770606639034,-500.0,0.00044356,120]
[404832969,1770606639044,-614.02713065,0.00044356,120]
[404832970,1770606639053,-500.0,0.00044356,120]
[404832971,1770606639063,-500.0,0.00044356,120]
[404832972,1770606639073,-500.0,0.00044356,120]
[404832973,1770606639082,-500.0,0.00044356,120]
[404832974,1770606639091,-500.0,0.00044356,120]
[404832975,1770606639100,-500.0,0.00044356,120]
[404832976,1770606639110,-500.0,0.00044356,120]
[404832977,1770606639120,-500.0,0.00044356,120]
[404832978,1770606639130,-500.0,0.00044356,120]
[404832979,1770606639139,-500.0,0.00044356,120]
[404832980,1770606639149,-500.0,0.00044356,120]
[404832981,1770606639161,-500.0,0.00044356,120]
[404832982,1770606639171,-500.0,0.00044356,120]
[404832983,1770606639180,-500.0,0.00044356,120]
[404832984,1770606639189,-535.62649329,0.00044356,120]
[404832985,1770606639200,-500.0,0.00044356,120]
[404832986,1770606639210,-500.0,0.00044356,120]
[404832987,1770606639220,-529.43197278,0.00044356,120]
[404832988,1770606639230,-500.0,0.00044356,120]
[404832989,1770606639239,-500.0,0.00044356,120]
[404832990,1770606639249,-500.0,0.00044356,120]
[404832991,1770606639259,-524.32976139,0.00044356,120]
[404832992,1770606639268,-500.0,0.00044356,120]
[404832993,1770606639277,-500.0,0.00044356,120]
[404832994,1770606639289,-500.0,0.00044356,120]
[404832995,1770606639299,-500.0,0.00044356,120]
[404832996,1770606639309,-500.0,0.00044356,120]
[404832997,1770606639319,-500.0,0.00044356,120]
[404832998,1770606639329,-500.0,0.00044356,120]
[404832999,1770606639339,-500.0,0.00044356,120]
[404833000,1770606639348,-597.62023702,0.00044356,120]
[404833001,1770606639359,-500.0,0.00044356,120]
[404833002,1770606639367,-500.0,0.00044356,120]
[404833003,1770606639378,-500.0,0.00044356,120]
[404833004,1770606639387,-500.0,0.00044356,120]
[404833005,1770606639397,-166.71820347,0.00044356,120]
[404833006,1770606639408,-500.0,0.00044356,120]
[404833007,1770606639418,-500.0,0.00044356,120]
[404833008,1770606639427,-500.0,0.00044356,120]
[404833009,1770606639437,-500.0,0.00044356,120]
[404833010,1770606639447,-500.0,0.00044356,120]
[404833011,1770606639457,-510.48,0.00044356,120]
[404833012,1770606639467,-500.0,0.00044356,120]
[404833013,1770606639477,-500.0,0.00044356,120]
[404833014,1770606639487,-500.0,0.00044356,120]
[404833015,1770606639497,-500.0,0.00044356,120]
[404833016,1770606639507,-500.0,0.00044356,120]
[404833017,1770606639516,-500.0,0.00044356,120]
[404833018,1770606639527,-500.0,0.00044356,120]
[404833019,1770606639537,-500.0,0.00044356,120]
[404833020,1770606639547,-500.0,0.00044356,120]
[404833021,1770606639557,-500.0,0.00044356,120]
[404833022,1770606639566,-547.14499085,0.00044356,120]
[404833023,1770606639576,-500.0,0.00044356,120]
[404833024,1770606639587,-625.15940479,0.00044356,120]
[404833025,1770606639596,-500.0,0.00044356,120]
[404833026,1770606639606,-500.0,0.00044356,120]
[404833027,1770606639615,-500.0,0.00044356,120]
[404833028,1770606639624,-500.0,0.00044356,120]
[404833029,1770606639634,-500.0,0.00044356,120]
[404833030,1770606639643,-500.0,0.00044356,120]
[404833031,1770606639653,-500.0,0.00044356,120]
[404833032,1770606639663,-500.0,0.00044356,120]
[404833033,1770606639672,-240.32747839,0.00044356,120]
[404833034,1770606639682,-500.0,0.00044356,120]
[404833035,1770606639692,-500.0,0.00044356,120]
[404833036,1770606639701,-500.0,0.00044356,120]
[404833037,1770606639711,-500.0,0.00044356,120]
[404833038,1770606639720,-220.34,0.00044356,120]
[404833039,1770606639730,-500.0,0.00044356,120]
[404833040,1770606639739,-500.0,0.00044356,120]
[404833041,1770606639749,-507.09927766,0.00044356,120]
[404833042,1770606639758,-500.0,0.00044356,120]
[404833043,1770606639767,-500.0,0.00044356,120]
[404833044,1770606639777,-500.0,0.00044356,120]
[404833045,1770606639787,-583.64123887,0.00044356,120]
[404833046,1770606639796,-500.0,0.00044356,120]
[404833047,1770606639806,-500.0,0.00044356,120]
[404833048,1770606639815,-500.0,0.00044356,120]
[404833049,1770606639825,-500.0,0.00044356,120]
[404833050,1770606639834,-500.0,0.00044356,120]
[404833051,1770606639843,-500.0,0.00044356,120]
[404833052,1770606639852,-500.0,0.00044356,120]
[404833053,1770606639862,-507.12155609,0.00044356,120]
[404833054,1770606639871,-500.0,0.00044356,120]
[404833055,1770606639880,-500.0,0.00044356,120]
[404833056,1770606639889,-500.0,0.00044356,120]
[404833057,1770606639898,-500.0,0.00044356,120]
[404833058,1770606639907,-500.0,0.00044356,120]
[404833059,1770606639917,-500.0,0.00044356,120]
[404833060,1770606639926,-500.0,0.00044356,120]
[404833061,1770606639935,-500.0,0.00044356,120]
[404833062,1770606639944,-500.0,0.00044356,120]
[404833063,1770606639953,-500.0,0.00044356,120]
[404833064,1770606639962,-500.0,0.00044356,120]
[404833065,1770606639971,-500.0,0.00044356,120]
[404833066,1770606639980,-500.0,0.00044356,120]
[404833067,1770606639990,-500.0,0.00044356,120]
[404833068,1770606639999,-350.24,0.00044356,120]
[404833069,1770606640008,-500.0,0.00044356,120]
[404833070,1770606640017,-500.0,0.00044356,120]
[404833071,1770606640026,-500.0,0.00044356,120]
[404833072,1770606640035,-500.0,0.00044356,120]
[404833073,1770606640044,-500.0,0.00044356,120]
[404833074,1770606640053,-629.84,0.00044356,120]
[404833075,1770606640062,-500.0,0.00044356,120]
[404833076,1770606640072,-500.0,0.00044356,120]
[404833077,1770606640081,-520.40469439,0.00044356,120]
[404833078,1770606640090,-516.78226562,0.00044356,120]
[404833079,1770606640099,-500.0,0.00044356,120]
[404833080,1770606640108,-500.0,0.00044356,120]
[404833081,1770606640118,-500.0,0.00044356,120]
[404833082,1770606640129,-500.0,0.00044356,120]
[404833083,1770606640139,-500.0,0.00044356,120]
[404833084,1770606640151,-197.79,0.00044356,120]
[404833085,1770606640162,-512.07,0.00044356,120]
[404833086,1770606640172,-500.0,0.00044356,120]
[404833087,1770606640182,-500.0,0.00044356,120]
[404833088,1770606640192,-547.95,0.00044356,120]
[404833089,1770606640203,-500.0,0.00044356,120]
[404833090,1770606640214,-184.85375489,0.00044356,120]
[404833091,1770606640226,-500.0,0.00044356,120]
[404833092,1770606640237,-500.0,0.00044356,120]
[404833093,1770606640246,-500.0,0.00044356,120]
[404833094,1770606640256,-500.0,0.00044356,120]
[404833095,1770606640267,-539.7,0.00044356,120]
[404833096,1770606640277,-500.0,0.00044356,120]
[404833097,1770606640287,-500.0,0.00044356,120]
[404833098,1770606640298,-500.0,0.00044356,30]
[404833099,1770606640309,-500.0,0.00044356,30]
[404833100,1770606640319,-500.0,0.00044356,120]
[404833101,1770606640330,-500.0,0.00044356,120]
[404833102,1770606640340,-500.0,0.00044356,120]
[404833103,1770606640350,-500.0,0.00044356,120]
[404833104,1770606640360,-500.0,0.00044356,120]
[404833105,1770606640374,-500.0,0.00044356,120]
[404833106,1770606640383,-500.0,0.00044356,120]
[404833107,1770606640392,-500.0,0.00044356,120]
[404833108,1770606640401,-500.0,0.00044356,120]
[404833109,1770606640411,-500.0,0.00044356,120]
[404833110,1770606640420,-500.0,0.00044356,120]
[404833111,1770606640429,-500.0,0.00044356,120]
[404833112,1770606640443,-500.0,0.00044356,120]
[404833113,1770606640452,-500.0,0.00044356,120]
[404833114,1770606640461,-500.0,0.00044356,120]
[404833115,1770606640470,-262.8962874,0.00044356,120]
[404833116,1770606640479,-500.0,0.00044356,120]
[404833117,1770606640488,-500.0,0.00044356,120]
[404833118,1770606640501,-500.0,0.00044356,120]
[404833119,1770606640511,-500.0,0.00044356,120]
[404833120,1770606640519,-500.0,0.00044356,120]
[404833121,1770606640529,-568.68806371,0.00044356,120]
[404833122,1770606640538,-500.0,0.00044356,120]
[404833123,1770606640547,-500.0,0.00044356,120]
[404833124,1770606640556,-500.0,0.00044356,120]
[404833125,1770606640566,-500.0,0.00044356,120]
[404833126,1770606640575,-625.77069203,0.00044356,120]
[404833127,1770606640584,-556.74,0.00044356,120]
[404833128,1770606640594,-556.74,0.00044356,120]
[404833129,1770606640603,-556.74,0.00044356,120]
[404833130,1770606640613,-556.74,0.00044356,120]
[404833131,1770606640623,-556.74,0.00044356,120]
[404833132,1770606640633,-556.74,0.00044356,120]
[404833133,1770606640643,-556.74,0.00044356,120]
[404833134,1770606640652,-500.0,0.00044356,120]
[404833135,1770606640662,-556.74,0.00044356,120]
[404833136,1770606640671,-524.85770155,0.00044356,120]
[404833137,1770606640682,-556.74,0.00044356,120]
[404833138,1770606640692,-556.74,0.00044356,120]
[404833139,1770606640701,-556.74,0.00044356,120]
[404833140,1770606640711,-556.74,0.00044356,120]
[404833141,1770606640721,-556.74,0.00044356,120]
[404833142,1770606640730,-556.74,0.00044356,120]
[404833143,1770606640740,-556.74,0.00044356,120]
[404833144,1770606640750,-556.74,0.00044356,120]
[404833145,1770606640760,-500.0,0.00044356,120]
[404833146,1770606640770,-500.0,0.00044356,120]
[404833147,1770606640779,-500.0,0.00044356,120]
[404833148,1770606640789,-500.0,0.00044356,120]
[404833149,1770606640799,-500.0,0.00044356,120]
[404833150,1770606640809,-500.0,0.00044356,120]
[404833151,1770606640818,-500.0,0.00044356,120]
[404833152,1770606640829,-530.74239271,0.00044356,120]
[404833153,1770606640840,-500.0,0.00044356,120]
[404833154,1770606640851,-500.0,0.00044356,120]
[404833155,1770606640861,-500.0,0.00044356,120]
[404833156,1770606640871,-500.0,0.00044356,120]
[404833157,1770606640880,-500.0,0.00044356,120]
[404833158,1770606640892,-506.24972831,0.00044356,120]
[404833159,1770606640903,-500.0,0.00044356,120]
[404833160,1770606640915,-500.0,0.00044356,120]
[404833161,1770606640926,-500.0,0.00044356,120]
[404833162,1770606640938,-495.0,0.00044356,120]